[Event "Titled Tuesday Blitz August 08 Late 2023"]
[White "GAO"]
[Black "Kostiukov, Alexandr"]
[BlackFideId "14108100"]
[WhiteElo "2290"]
[BlackElo "2360"]
[Result "1-0"]
[Round "11"]
[TimeControl "180+1"]
[Date "2023.08.08"]
[WhiteClock "0:01:50"]
[BlackClock "0:00:18"]
[Board "87"]

1. a3 {[%clk 0:02:55]}  Nf6 {[%clk 0:02:53]} 2. Nf3 {[%clk 0:02:55]}  g6 {[%clk 0:02:49]} 3. b4 {[%clk 0:02:55]}  Bg7 {[%clk 0:02:49]} 4. Bb2 {[%clk 0:02:56]}  O-O {[%clk 0:02:49]} 5. e3 {[%clk 0:02:56]}  d5 {[%clk 0:02:49]} 6. d4 {[%clk 0:02:57]}  c6 {[%clk 0:02:47]} 7. c4 {[%clk 0:02:57]}  dxc4 {[%clk 0:02:46]} 8. Bxc4 {[%clk 0:02:56]}  Bg4 {[%clk 0:02:45]} 9. Nbd2 {[%clk 0:02:50]}  b6 {[%clk 0:02:05]} 10. h3 {[%clk 0:02:36]}  Bc8 {[%clk 0:02:03]} 11. Rc1 {[%clk 0:02:34]}  Ba6 {[%clk 0:02:00]} 12. Bxa6 {[%clk 0:02:33]}  Nxa6 {[%clk 0:02:01]} 13. Rxc6 {[%clk 0:02:31]}  Rc8 {[%clk 0:01:57]} 14. Rxc8 {[%clk 0:02:29]}  Qxc8 {[%clk 0:01:57]} 15. O-O {[%clk 0:02:30]}  Qd7 {[%clk 0:01:49]} 16. Qe2 {[%clk 0:02:26]}  Rc8 {[%clk 0:01:47]} 17. Qxa6 {[%clk 0:02:24]}  h5 {[%clk 0:01:43]} 18. Ne5 {[%clk 0:02:21]}  Qe8 {[%clk 0:01:40]} 19. Rc1 {[%clk 0:02:21]}  Rxc1+ {[%clk 0:01:40]} 20. Bxc1 {[%clk 0:02:22]}  Qd8 {[%clk 0:01:30]} 21. Qc4 {[%clk 0:02:16]}  e6 {[%clk 0:01:26]} 22. a4 {[%clk 0:02:08]}  Nd5 {[%clk 0:01:20]} 23. Ne4 {[%clk 0:02:05]}  Qh4 {[%clk 0:01:16]} 24. Nd6 {[%clk 0:01:58]}  Kh7 {[%clk 0:00:46]} 25. Ndxf7 {[%clk 0:01:54]}  Qe4 {[%clk 0:00:18]} 26. Qd3 {[%clk 0:01:50]} 1-0


[Site "https://www.chess.com"]

[Event "Titled Tuesday Blitz August 08 Late 2023"]
[White "Gerbelli Neto, Eduardo"]
[Black "Osiecki, Stanislaw"]
[WhiteFideId "2103281"]
[BlackFideId "1102990"]
[WhiteElo "2320"]
[BlackElo "2032"]
[Result "1-0"]
[Round "11"]
[TimeControl "180+1"]
[Date "2023.08.08"]
[WhiteClock "0:02:06"]
[BlackClock "0:00:36"]
[Board "91"]

1. e4 {[%clk 0:03:00]}  e6 {[%clk 0:02:41]} 2. d4 {[%clk 0:03:00]}  d5 {[%clk 0:02:41]} 3. Nc3 {[%clk 0:03:00]}  Bb4 {[%clk 0:02:40]} 4. Ne2 {[%clk 0:02:59]}  dxe4 {[%clk 0:02:39]} 5. a3 {[%clk 0:02:59]}  Be7 {[%clk 0:02:39]} 6. Nxe4 {[%clk 0:02:58]}  Nd7 {[%clk 0:02:39]} 7. N2c3 {[%clk 0:02:51]}  Ngf6 {[%clk 0:02:39]} 8. Bd3 {[%clk 0:02:51]}  Nxe4 {[%clk 0:02:38]} 9. Bxe4 {[%clk 0:02:50]}  Nf6 {[%clk 0:02:38]} 10. Bf3 {[%clk 0:02:51]}  O-O {[%clk 0:02:37]} 11. O-O {[%clk 0:02:50]}  c5 {[%clk 0:02:37]} 12. dxc5 {[%clk 0:02:49]}  Bxc5 {[%clk 0:02:37]} 13. Qxd8 {[%clk 0:02:49]}  Rxd8 {[%clk 0:02:37]} 14. Bg5 {[%clk 0:02:49]}  Be7 {[%clk 0:02:35]} 15. Rad1 {[%clk 0:02:48]}  Rxd1 {[%clk 0:02:31]} 16. Rxd1 {[%clk 0:02:48]}  a6 {[%clk 0:02:26]} 17. b4 {[%clk 0:02:35]}  Kf8 {[%clk 0:02:19]} 18. Ne4 {[%clk 0:02:32]}  Nxe4 {[%clk 0:02:12]} 19. Bxe7+ {[%clk 0:02:32]}  Kxe7 {[%clk 0:02:12]} 20. Bxe4 {[%clk 0:02:33]}  f5 {[%clk 0:02:07]} 21. Bf3 {[%clk 0:02:31]}  e5 {[%clk 0:01:58]} 22. Bd5 {[%clk 0:02:31]}  Kf6 {[%clk 0:01:39]} 23. f3 {[%clk 0:02:23]}  Rb8 {[%clk 0:01:33]} 24. c4 {[%clk 0:02:21]}  Be6 {[%clk 0:01:31]} 25. Bxe6 {[%clk 0:02:19]}  Kxe6 {[%clk 0:01:31]} 26. c5 {[%clk 0:02:19]}  b6 {[%clk 0:01:27]} 27. Rd6+ {[%clk 0:02:19]}  Ke7 {[%clk 0:01:24]} 28. Rxb6 {[%clk 0:02:18]}  Ra8 {[%clk 0:01:18]} 29. a4 {[%clk 0:02:16]}  a5 {[%clk 0:01:13]} 30. b5 {[%clk 0:02:16]}  Rd8 {[%clk 0:01:10]} 31. Rb7+ {[%clk 0:02:14]}  Kf6 {[%clk 0:01:09]} 32. c6 {[%clk 0:02:12]}  e4 {[%clk 0:00:45]} 33. fxe4 {[%clk 0:02:12]}  fxe4 {[%clk 0:00:44]} 34. Kf2 {[%clk 0:02:13]}  Rd3 {[%clk 0:00:41]} 35. c7 {[%clk 0:02:08]}  Rc3 {[%clk 0:00:40]} 36. Rb6+ {[%clk 0:02:08]}  Ke7 {[%clk 0:00:39]} 37. Rc6 {[%clk 0:02:06]}  Rxc6 {[%clk 0:00:36]} 38. bxc6 {[%clk 0:02:06]} 1-0


[Site "https://www.chess.com"]

[Event "Titled Tuesday Blitz August 08 Late 2023"]
[White "Liu, Casper"]
[Black "Steindl, Johannes"]
[WhiteFideId "1454153"]
[BlackFideId "1643266"]
[WhiteElo "2436"]
[BlackElo "2232"]
[Result "0-1"]
[Round "11"]
[TimeControl "180+1"]
[Date "2023.08.08"]
[WhiteClock "0:00:01"]
[BlackClock "0:00:38"]
[Board "92"]

1. d4 {[%clk 0:02:55]}  Nf6 {[%clk 0:02:58]} 2. Bf4 {[%clk 0:02:54]}  d5 {[%clk 0:02:52]} 3. e3 {[%clk 0:02:54]}  c5 {[%clk 0:02:51]} 4. Nf3 {[%clk 0:02:54]}  Nc6 {[%clk 0:02:51]} 5. Nbd2 {[%clk 0:02:54]}  e6 {[%clk 0:02:47]} 6. c3 {[%clk 0:02:54]}  Bd6 {[%clk 0:02:46]} 7. Bg3 {[%clk 0:02:54]}  O-O {[%clk 0:02:35]} 8. Bd3 {[%clk 0:02:52]}  b6 {[%clk 0:02:35]} 9. Qe2 {[%clk 0:02:51]}  Bb7 {[%clk 0:02:27]} 10. Rd1 {[%clk 0:02:50]}  Rc8 {[%clk 0:02:12]} 11. e4 {[%clk 0:02:45]}  Be7 {[%clk 0:02:12]} 12. e5 {[%clk 0:02:44]}  Nd7 {[%clk 0:02:09]} 13. h4 {[%clk 0:02:42]}  g6 {[%clk 0:01:58]} 14. Bf4 {[%clk 0:02:13]}  cxd4 {[%clk 0:01:55]} 15. cxd4 {[%clk 0:02:13]}  Nb4 {[%clk 0:01:54]} 16. Ng5 {[%clk 0:01:54]}  Kg7 {[%clk 0:01:16]} 17. Bb1 {[%clk 0:01:05]}  Ba6 {[%clk 0:01:12]} 18. Qg4 {[%clk 0:00:59]}  h5 {[%clk 0:01:09]} 19. Nxe6+ {[%clk 0:00:58]}  Kg8 {[%clk 0:00:58]} 20. Qg3 {[%clk 0:00:46]}  Qe8 {[%clk 0:00:58]} 21. Nxf8 {[%clk 0:00:42]}  Nxf8 {[%clk 0:00:55]} 22. Nf3 {[%clk 0:00:23]}  Qb5 {[%clk 0:00:53]} 23. Ng1 {[%clk 0:00:08]}  Nc2+ {[%clk 0:00:43]} 24. Bxc2 {[%clk 0:00:09]}  Bb4+ {[%clk 0:00:41]} 25. Qc3 {[%clk 0:00:06]}  Rxc3 {[%clk 0:00:36]} 26. bxc3 {[%clk 0:00:03]}  Bxc3+ {[%clk 0:00:37]} 27. Bd2 {[%clk 0:00:01]}  Qf1# {[%clk 0:00:38]} 0-1


[Site "https://www.chess.com"]

[Event "Titled Tuesday Blitz August 08 Late 2023"]
[White "Oliveira, Tiago Batista"]
[Black "Shapiro, Daniel"]
[WhiteFideId "2108291"]
[BlackFideId "2001780"]
[WhiteElo "2175"]
[BlackElo "2306"]
[Result "0-1"]
[Round "11"]
[TimeControl "180+1"]
[Date "2023.08.08"]
[WhiteClock "0:00:00"]
[BlackClock "0:00:22"]
[Board "94"]

1. d4 {[%clk 0:03:00]}  Nf6 {[%clk 0:02:59]} 2. c4 {[%clk 0:03:01]}  e6 {[%clk 0:02:59]} 3. g3 {[%clk 0:02:58]}  d5 {[%clk 0:02:56]} 4. Nf3 {[%clk 0:02:57]}  Bb4+ {[%clk 0:02:55]} 5. Bd2 {[%clk 0:02:56]}  Be7 {[%clk 0:02:55]} 6. Bg2 {[%clk 0:02:53]}  c6 {[%clk 0:02:55]} 7. O-O {[%clk 0:02:51]}  O-O {[%clk 0:02:55]} 8. Qc2 {[%clk 0:02:50]}  b6 {[%clk 0:02:55]} 9. Rd1 {[%clk 0:02:50]}  Nbd7 {[%clk 0:02:52]} 10. Bf4 {[%clk 0:02:49]}  Bb7 {[%clk 0:02:52]} 11. Nbd2 {[%clk 0:02:47]}  Rc8 {[%clk 0:02:50]} 12. e4 {[%clk 0:02:44]}  c5 {[%clk 0:02:42]} 13. exd5 {[%clk 0:02:40]}  exd5 {[%clk 0:02:41]} 14. dxc5 {[%clk 0:02:35]}  Bxc5 {[%clk 0:02:39]} 15. Qf5 {[%clk 0:02:27]}  dxc4 {[%clk 0:02:20]} 16. Nf1 {[%clk 0:01:08]}  Be4 {[%clk 0:01:13]} 17. Qh3 {[%clk 0:00:54]}  Bd3 {[%clk 0:01:13]} 18. b3 {[%clk 0:00:47]}  b5 {[%clk 0:01:13]} 19. a4 {[%clk 0:00:40]}  a6 {[%clk 0:01:13]} 20. axb5 {[%clk 0:00:40]}  axb5 {[%clk 0:01:13]} 21. bxc4 {[%clk 0:00:40]}  bxc4 {[%clk 0:01:13]} 22. Ne5 {[%clk 0:00:36]}  Nxe5 {[%clk 0:01:09]} 23. Bxe5 {[%clk 0:00:36]}  Bd4 {[%clk 0:01:03]} 24. Bxd4 {[%clk 0:00:29]}  Qxd4 {[%clk 0:01:03]} 25. Ne3 {[%clk 0:00:21]}  g6 {[%clk 0:00:48]} 26. Ra4 {[%clk 0:00:11]}  Rfd8 {[%clk 0:00:44]} 27. Bf1 {[%clk 0:00:10]}  Qc5 {[%clk 0:00:33]} 28. Qh4 {[%clk 0:00:08]}  Kg7 {[%clk 0:00:31]} 29. Ra6 {[%clk 0:00:06]}  Rd6 {[%clk 0:00:28]} 30. Rxd6 {[%clk 0:00:05]}  Qxd6 {[%clk 0:00:27]} 31. Qg5 {[%clk 0:00:04]}  h6 {[%clk 0:00:26]} 32. Qh4 {[%clk 0:00:03]}  g5 {[%clk 0:00:25]} 33. Qh3 {[%clk 0:00:02]}  Qe5 {[%clk 0:00:24]} 34. Ng4 {[%clk 0:00:01]}  Nxg4 {[%clk 0:00:23]} 35. Qxg4 {[%clk 0:00:00]}  Rd8 {[%clk 0:00:22]} 0-1


[Site "https://www.chess.com"]

[Event "Titled Tuesday Blitz August 08 Late 2023"]
[White "Sarkar, Justin"]
[Black "Maluco_do_Natal_00"]
[WhiteFideId "2010011"]
[WhiteElo "2224"]
[BlackElo "2097"]
[Result "1-0"]
[Round "11"]
[TimeControl "180+1"]
[Date "2023.08.08"]
[WhiteClock "0:00:03"]
[BlackClock "0:00:00"]
[Board "98"]

1. d4 {[%clk 0:02:46]}  d5 {[%clk 0:02:03]} 2. c4 {[%clk 0:02:41]}  c6 {[%clk 0:02:03]} 3. Nf3 {[%clk 0:02:39]}  Nf6 {[%clk 0:02:03]} 4. Nc3 {[%clk 0:02:36]}  dxc4 {[%clk 0:02:03]} 5. a4 {[%clk 0:02:35]}  Bf5 {[%clk 0:02:03]} 6. e3 {[%clk 0:02:26]}  e6 {[%clk 0:02:04]} 7. Bxc4 {[%clk 0:02:25]}  Bb4 {[%clk 0:02:04]} 8. O-O {[%clk 0:02:26]}  Nbd7 {[%clk 0:02:03]} 9. Qe2 {[%clk 0:02:18]}  Ne4 {[%clk 0:02:02]} 10. Nxe4 {[%clk 0:01:49]}  Bxe4 {[%clk 0:02:00]} 11. Bd2 {[%clk 0:01:48]}  Qe7 {[%clk 0:01:57]} 12. Bxb4 {[%clk 0:01:43]}  Qxb4 {[%clk 0:01:56]} 13. Nd2 {[%clk 0:01:36]}  Bg6 {[%clk 0:01:48]} 14. b3 {[%clk 0:01:26]}  Nb6 {[%clk 0:01:45]} 15. a5 {[%clk 0:01:15]}  Nd5 {[%clk 0:01:42]} 16. e4 {[%clk 0:01:09]}  Nc3 {[%clk 0:01:07]} 17. Qe3 {[%clk 0:01:06]}  Rd8 {[%clk 0:00:58]} 18. Rfc1 {[%clk 0:00:56]}  Nb5 {[%clk 0:00:55]} 19. d5 {[%clk 0:00:48]}  O-O {[%clk 0:00:49]} 20. Ra4 {[%clk 0:00:34]}  Qe7 {[%clk 0:00:40]} 21. dxc6 {[%clk 0:00:31]}  bxc6 {[%clk 0:00:36]} 22. Nf3 {[%clk 0:00:31]}  a6 {[%clk 0:00:28]} 23. h3 {[%clk 0:00:29]}  e5 {[%clk 0:00:18]} 24. Bf1 {[%clk 0:00:27]}  Rd7 {[%clk 0:00:16]} 25. Rxc6 {[%clk 0:00:24]}  Rd1 {[%clk 0:00:16]} 26. Rc1 {[%clk 0:00:12]}  Rfd8 {[%clk 0:00:15]} 27. Raa1 {[%clk 0:00:11]}  Rxc1 {[%clk 0:00:14]} 28. Rxc1 {[%clk 0:00:11]}  Bh5 {[%clk 0:00:14]} 29. Qc5 {[%clk 0:00:06]}  Qxc5 {[%clk 0:00:12]} 30. Rxc5 {[%clk 0:00:04]}  Bxf3 {[%clk 0:00:12]} 31. gxf3 {[%clk 0:00:04]}  Nd4 {[%clk 0:00:12]} 32. Kg2 {[%clk 0:00:04]}  h5 {[%clk 0:00:12]} 33. Rxe5 {[%clk 0:00:03]}  Nxb3 {[%clk 0:00:12]} 34. Bxa6 {[%clk 0:00:03]}  Ra8 {[%clk 0:00:10]} 35. Bc4 {[%clk 0:00:03]}  Nxa5 {[%clk 0:00:10]} 36. Bd5 {[%clk 0:00:04]}  Ra7 {[%clk 0:00:09]} 37. Rxh5 {[%clk 0:00:04]}  g6 {[%clk 0:00:10]} 38. Rg5 {[%clk 0:00:04]}  Kg7 {[%clk 0:00:10]} 39. h4 {[%clk 0:00:04]}  Nb7 {[%clk 0:00:10]} 40. Bxb7 {[%clk 0:00:03]}  Rxb7 {[%clk 0:00:11]} 41. f4 {[%clk 0:00:04]}  Rb4 {[%clk 0:00:10]} 42. f3 {[%clk 0:00:04]}  Rb2+ {[%clk 0:00:10]} 43. Kg3 {[%clk 0:00:04]}  f6 {[%clk 0:00:10]} 44. Rd5 {[%clk 0:00:04]}  Rb1 {[%clk 0:00:10]} 45. h5 {[%clk 0:00:04]}  Kh6 {[%clk 0:00:07]} 46. hxg6 {[%clk 0:00:03]}  Kxg6 {[%clk 0:00:08]} 47. f5+ {[%clk 0:00:04]}  Kg5 {[%clk 0:00:06]} 48. f4+ {[%clk 0:00:04]}  Kh6 {[%clk 0:00:06]} 49. Rd6 {[%clk 0:00:02]}  Kg7 {[%clk 0:00:06]} 50. e5 {[%clk 0:00:03]}  fxe5 {[%clk 0:00:05]} 51. fxe5 {[%clk 0:00:03]}  Rb4 {[%clk 0:00:05]} 52. Kf3 {[%clk 0:00:03]}  Kf7 {[%clk 0:00:05]} 53. Rd7+ {[%clk 0:00:03]}  Ke8 {[%clk 0:00:05]} 54. e6 {[%clk 0:00:04]}  Rc4 {[%clk 0:00:04]} 55. f6 {[%clk 0:00:03]}  Rc8 {[%clk 0:00:02]} 56. f7+ {[%clk 0:00:03]}  Kf8 {[%clk 0:00:03]} 57. Kf4 {[%clk 0:00:03]}  Rc4+ {[%clk 0:00:02]} 58. Ke5 {[%clk 0:00:03]}  Re4+ {[%clk 0:00:00]} 59. Kxe4 {[%clk 0:00:03]} 1-0


[Site "https://www.chess.com"]

[Event "Titled Tuesday Blitz August 08 Late 2023"]
[White "Hirneise, Jens"]
[Black "Castro Silva, Moises Antonio"]
[WhiteFideId "24614734"]
[BlackFideId "3909794"]
[WhiteElo "2496"]
[BlackElo "2389"]
[Result "1-0"]
[Round "11"]
[TimeControl "180+1"]
[Date "2023.08.08"]
[WhiteClock "0:00:35"]
[BlackClock "0:00:06"]
[Board "99"]

1. Nf3 {[%clk 0:03:00]}  c5 {[%clk 0:02:59]} 2. c4 {[%clk 0:02:53]}  Nc6 {[%clk 0:02:59]} 3. Nc3 {[%clk 0:02:43]}  g6 {[%clk 0:02:52]} 4. d3 {[%clk 0:02:32]}  Bg7 {[%clk 0:02:50]} 5. Qd2 {[%clk 0:02:32]}  e6 {[%clk 0:02:43]} 6. b3 {[%clk 0:02:31]}  Nge7 {[%clk 0:02:43]} 7. Bb2 {[%clk 0:02:27]}  d6 {[%clk 0:02:16]} 8. Ne4 {[%clk 0:02:23]}  e5 {[%clk 0:02:15]} 9. h4 {[%clk 0:02:18]}  h6 {[%clk 0:02:10]} 10. Nc3 {[%clk 0:02:10]}  f5 {[%clk 0:02:01]} 11. e3 {[%clk 0:01:51]}  Be6 {[%clk 0:01:59]} 12. d4 {[%clk 0:01:42]}  exd4 {[%clk 0:01:55]} 13. exd4 {[%clk 0:01:41]}  Nxd4 {[%clk 0:01:56]} 14. Nxd4 {[%clk 0:01:35]}  Bxd4 {[%clk 0:01:56]} 15. Nb5 {[%clk 0:01:28]}  Bxb2 {[%clk 0:01:53]} 16. Qxb2 {[%clk 0:01:29]}  O-O {[%clk 0:01:30]} 17. O-O-O {[%clk 0:01:27]}  Nc8 {[%clk 0:01:18]} 18. Qd2 {[%clk 0:01:20]}  Qf6 {[%clk 0:01:06]} 19. Kb1 {[%clk 0:01:16]}  f4 {[%clk 0:00:52]} 20. Bd3 {[%clk 0:01:06]}  Bf5 {[%clk 0:00:33]} 21. Nc3 {[%clk 0:01:02]}  Ne7 {[%clk 0:00:26]} 22. h5 {[%clk 0:00:50]}  g5 {[%clk 0:00:23]} 23. Qc2 {[%clk 0:00:45]}  Rad8 {[%clk 0:00:20]} 24. Bxf5 {[%clk 0:00:38]}  Qxf5 {[%clk 0:00:20]} 25. Rd3 {[%clk 0:00:38]}  Nc6 {[%clk 0:00:17]} 26. Nd5 {[%clk 0:00:36]}  Ne5 {[%clk 0:00:06]} 27. Ne7+ {[%clk 0:00:35]} 1-0


[Site "https://www.chess.com"]

[Event "Titled Tuesday Blitz August 08 Late 2023"]
[White "rionelG"]
[Black "Gyulamiryan-koryun"]
[WhiteElo "2293"]
[BlackElo "2033"]
[Result "1-0"]
[Round "11"]
[TimeControl "180+1"]
[Date "2023.08.08"]
[WhiteClock "0:00:09"]
[BlackClock "0:00:20"]
[Board "101"]

1. e4 {[%clk 0:02:34]}  e5 {[%clk 0:02:58]} 2. Nf3 {[%clk 0:02:34]}  Nc6 {[%clk 0:02:58]} 3. d4 {[%clk 0:02:35]}  exd4 {[%clk 0:02:58]} 4. Nxd4 {[%clk 0:02:36]}  Bc5 {[%clk 0:02:57]} 5. Nxc6 {[%clk 0:02:36]}  Qf6 {[%clk 0:02:57]} 6. Qf3 {[%clk 0:02:31]}  dxc6 {[%clk 0:02:43]} 7. Nc3 {[%clk 0:02:29]}  Be6 {[%clk 0:02:34]} 8. Be3 {[%clk 0:02:28]}  Bb4 {[%clk 0:02:29]} 9. Qxf6 {[%clk 0:02:17]}  Nxf6 {[%clk 0:02:28]} 10. f3 {[%clk 0:02:17]}  O-O-O {[%clk 0:02:27]} 11. a3 {[%clk 0:01:59]}  Bxc3+ {[%clk 0:02:26]} 12. bxc3 {[%clk 0:02:00]}  b6 {[%clk 0:02:26]} 13. Ba6+ {[%clk 0:01:55]}  Kb8 {[%clk 0:02:25]} 14. a4 {[%clk 0:01:51]}  Nd7 {[%clk 0:02:21]} 15. Ke2 {[%clk 0:01:44]}  f5 {[%clk 0:02:19]} 16. Bd3 {[%clk 0:01:40]}  g6 {[%clk 0:02:17]} 17. exf5 {[%clk 0:01:39]}  Bxf5 {[%clk 0:02:16]} 18. g4 {[%clk 0:01:32]}  Be6 {[%clk 0:02:12]} 19. Rhd1 {[%clk 0:01:09]}  Ne5 {[%clk 0:02:06]} 20. Be4 {[%clk 0:01:08]}  Bc4+ {[%clk 0:02:04]} 21. Kf2 {[%clk 0:01:08]}  Rde8 {[%clk 0:01:55]} 22. Bd4 {[%clk 0:01:00]}  Rhf8 {[%clk 0:01:48]} 23. Bxe5 {[%clk 0:00:57]}  Rxe5 {[%clk 0:01:47]} 24. Bxc6 {[%clk 0:00:57]}  h5 {[%clk 0:01:27]} 25. h3 {[%clk 0:00:55]}  Re2+ {[%clk 0:01:26]} 26. Kg3 {[%clk 0:00:54]}  Rxc2 {[%clk 0:01:25]} 27. Rac1 {[%clk 0:00:36]}  Re2 {[%clk 0:01:17]} 28. Re1 {[%clk 0:00:30]}  g5 {[%clk 0:01:13]} 29. Rxe2 {[%clk 0:00:24]}  Bxe2 {[%clk 0:01:10]} 30. gxh5 {[%clk 0:00:24]}  a6 {[%clk 0:01:07]} 31. Re1 {[%clk 0:00:24]}  Bc4 {[%clk 0:00:56]} 32. Re5 {[%clk 0:00:23]}  Rg8 {[%clk 0:00:48]} 33. h6 {[%clk 0:00:22]}  b5 {[%clk 0:00:42]} 34. axb5 {[%clk 0:00:13]}  Bxb5 {[%clk 0:00:41]} 35. Be4 {[%clk 0:00:13]}  c6 {[%clk 0:00:38]} 36. h7 {[%clk 0:00:13]}  Rh8 {[%clk 0:00:38]} 37. Rxg5 {[%clk 0:00:13]}  Bc4 {[%clk 0:00:37]} 38. Rg7 {[%clk 0:00:12]}  Bd5 {[%clk 0:00:35]} 39. Kf4 {[%clk 0:00:09]}  Rf8+ {[%clk 0:00:32]} 40. Ke5 {[%clk 0:00:08]}  Bxe4 {[%clk 0:00:31]} 41. fxe4 {[%clk 0:00:07]}  Re8+ {[%clk 0:00:30]} 42. Kd4 {[%clk 0:00:07]}  Rd8+ {[%clk 0:00:29]} 43. Kc5 {[%clk 0:00:07]}  a5 {[%clk 0:00:24]} 44. Rg8 {[%clk 0:00:07]}  Kc8 {[%clk 0:00:23]} 45. Rxd8+ {[%clk 0:00:07]}  Kxd8 {[%clk 0:00:23]} 46. h8=Q+ {[%clk 0:00:08]}  Ke7 {[%clk 0:00:23]} 47. Qh6 {[%clk 0:00:07]}  Kd7 {[%clk 0:00:23]} 48. Qf6 {[%clk 0:00:07]}  a4 {[%clk 0:00:21]} 49. Qf7+ {[%clk 0:00:07]}  Kd8 {[%clk 0:00:21]} 50. Kxc6 {[%clk 0:00:08]}  a3 {[%clk 0:00:20]} 51. Qf8# {[%clk 0:00:09]} 1-0


[Site "https://www.chess.com"]

[Event "Titled Tuesday Blitz August 08 Late 2023"]
[White "Petersson, Kjell"]
[Black "Vargas, Mauricio"]
[WhiteFideId "1705148"]
[BlackFideId "4404572"]
[WhiteElo "2179"]
[BlackElo "1888"]
[Result "1-0"]
[Round "11"]
[TimeControl "180+1"]
[Date "2023.08.08"]
[WhiteClock "0:01:16"]
[BlackClock "0:01:27"]
[Board "103"]

1. d4 {[%clk 0:03:00]}  d5 {[%clk 0:02:58]} 2. Bf4 {[%clk 0:03:01]}  h5 {[%clk 0:02:57]} 3. Nf3 {[%clk 0:02:57]}  Bg4 {[%clk 0:02:44]} 4. Nbd2 {[%clk 0:02:43]}  Nd7 {[%clk 0:02:36]} 5. h3 {[%clk 0:02:43]}  Bxf3 {[%clk 0:02:30]} 6. Nxf3 {[%clk 0:02:44]}  e6 {[%clk 0:02:26]} 7. e3 {[%clk 0:02:44]}  Ngf6 {[%clk 0:02:18]} 8. Bd3 {[%clk 0:02:42]}  Bd6 {[%clk 0:02:11]} 9. Bxd6 {[%clk 0:02:41]}  cxd6 {[%clk 0:02:10]} 10. c3 {[%clk 0:02:39]}  g6 {[%clk 0:02:09]} 11. Qb3 {[%clk 0:02:27]}  b6 {[%clk 0:02:05]} 12. Qc2 {[%clk 0:02:08]}  O-O {[%clk 0:01:58]} 13. g4 {[%clk 0:01:51]}  h4 {[%clk 0:01:47]} 14. Nxh4 {[%clk 0:01:45]}  Ne4 {[%clk 0:01:44]} 15. Bxe4 {[%clk 0:01:42]}  Qxh4 {[%clk 0:01:43]} 16. Bd3 {[%clk 0:01:37]}  e5 {[%clk 0:01:42]} 17. Bb5 {[%clk 0:01:30]}  Nf6 {[%clk 0:01:39]} 18. O-O-O {[%clk 0:01:17]}  Qxf2 {[%clk 0:01:27]} 19. Qxf2 {[%clk 0:01:16]} 1-0


[Site "https://www.chess.com"]